[Event "Titled Tuesday Blitz October 11 Early 2022"]
[White "Kosteniuk, Alexandra"]
[Black "Yurovskykh, Oleksandr"]
[WhiteFideId "4128125"]
[BlackFideId "14134020"]
[WhiteElo "2469"]
[BlackElo "2303"]
[Result "1-0"]
[Round "04"]
[TimeControl "180+1"]
[Date "2022.10.12"]
[WhiteClock "0:00:01"]
[BlackClock "0:00:01"]

1. Nf3 {[%clk 0:03:00]}  d5 {[%clk 0:02:59]} 2. g3 {[%clk 0:03:00]}  c6 {[%clk 0:02:57]} 3. Bg2 {[%clk 0:03:00]}  Bg4 {[%clk 0:02:58]} 4. O-O {[%clk 0:02:59]}  Nd7 {[%clk 0:02:58]} 5. h3 {[%clk 0:02:59]}  Bh5 {[%clk 0:02:57]} 6. d4 {[%clk 0:02:59]}  e6 {[%clk 0:02:58]} 7. c4 {[%clk 0:02:59]}  Ngf6 {[%clk 0:02:57]} 8. cxd5 {[%clk 0:02:58]}  exd5 {[%clk 0:02:57]} 9. Qb3 {[%clk 0:02:58]}  Qb6 {[%clk 0:02:47]} 10. Qe3+ {[%clk 0:02:58]}  Be7 {[%clk 0:02:47]} 11. Nh4 {[%clk 0:02:55]}  Bg6 {[%clk 0:02:38]} 12. Nc3 {[%clk 0:02:50]}  Qd8 {[%clk 0:02:32]} 13. Nxg6 {[%clk 0:02:42]}  hxg6 {[%clk 0:02:31]} 14. Qf3 {[%clk 0:02:41]}  O-O {[%clk 0:02:31]} 15. h4 {[%clk 0:02:41]}  Bd6 {[%clk 0:02:25]} 16. a3 {[%clk 0:02:37]}  a5 {[%clk 0:02:24]} 17. Rb1 {[%clk 0:02:37]}  a4 {[%clk 0:02:24]} 18. Bf4 {[%clk 0:02:33]}  Bxf4 {[%clk 0:02:12]} 19. Qxf4 {[%clk 0:02:31]}  Qb8 {[%clk 0:02:06]} 20. e3 {[%clk 0:02:23]}  Qxf4 {[%clk 0:01:58]} 21. gxf4 {[%clk 0:02:24]}  Ra7 {[%clk 0:01:53]} 22. Bf3 {[%clk 0:02:22]}  Nb6 {[%clk 0:01:48]} 23. Be2 {[%clk 0:02:16]}  Ne8 {[%clk 0:01:41]} 24. Kg2 {[%clk 0:02:12]}  Nd6 {[%clk 0:01:41]} 25. Rh1 {[%clk 0:02:12]}  Nbc4 {[%clk 0:01:36]} 26. h5 {[%clk 0:02:12]}  gxh5 {[%clk 0:01:34]} 27. Rxh5 {[%clk 0:02:11]}  g6 {[%clk 0:01:34]} 28. Rg5 {[%clk 0:01:55]}  Kg7 {[%clk 0:01:32]} 29. Bd3 {[%clk 0:01:56]}  Rh8 {[%clk 0:01:23]} 30. Rg3 {[%clk 0:01:31]}  Kf6 {[%clk 0:01:21]} 31. Rh3 {[%clk 0:00:46]}  Rxh3 {[%clk 0:01:20]} 32. Kxh3 {[%clk 0:00:47]}  b5 {[%clk 0:01:12]} 33. Kg2 {[%clk 0:00:46]}  Ra8 {[%clk 0:01:12]} 34. Na2 {[%clk 0:00:45]}  Ke6 {[%clk 0:01:08]} 35. Nb4 {[%clk 0:00:45]}  Kd7 {[%clk 0:01:08]} 36. Be2 {[%clk 0:00:41]}  Rh8 {[%clk 0:00:54]} 37. Nd3 {[%clk 0:00:41]}  Ne4 {[%clk 0:00:52]} 38. Rd1 {[%clk 0:00:33]}  Kd6 {[%clk 0:00:35]} 39. Bf3 {[%clk 0:00:33]}  Ncd2 {[%clk 0:00:27]} 40. Bxe4 {[%clk 0:00:30]}  Nxe4 {[%clk 0:00:27]} 41. Ne5 {[%clk 0:00:29]}  f6 {[%clk 0:00:14]} 42. Nxg6 {[%clk 0:00:26]}  Rg8 {[%clk 0:00:14]} 43. f5 {[%clk 0:00:27]}  Kd7 {[%clk 0:00:11]} 44. f3 {[%clk 0:00:24]}  Nd6 {[%clk 0:00:11]} 45. Kf2 {[%clk 0:00:21]}  Nxf5 {[%clk 0:00:12]} 46. Nf4 {[%clk 0:00:21]}  Nd6 {[%clk 0:00:11]} 47. Rh1 {[%clk 0:00:20]}  Rg7 {[%clk 0:00:11]} 48. Nd3 {[%clk 0:00:19]}  Nc4 {[%clk 0:00:11]} 49. e4 {[%clk 0:00:18]}  dxe4 {[%clk 0:00:11]} 50. fxe4 {[%clk 0:00:19]}  Re7 {[%clk 0:00:11]} 51. Rh6 {[%clk 0:00:15]}  Nd6 {[%clk 0:00:09]} 52. e5 {[%clk 0:00:14]}  fxe5 {[%clk 0:00:10]} 53. dxe5 {[%clk 0:00:12]}  Nc4 {[%clk 0:00:11]} 54. Rh5 {[%clk 0:00:11]}  Kc7 {[%clk 0:00:11]} 55. Kf3 {[%clk 0:00:11]}  Rf7+ {[%clk 0:00:11]} 56. Ke4 {[%clk 0:00:11]}  Rg7 {[%clk 0:00:12]} 57. Rh4 {[%clk 0:00:08]}  Rg2 {[%clk 0:00:12]} 58. Kd4 {[%clk 0:00:08]}  Nxb2 {[%clk 0:00:12]} 59. Rh7+ {[%clk 0:00:06]}  Kd8 {[%clk 0:00:11]} 60. Nc5 {[%clk 0:00:05]}  Nc4 {[%clk 0:00:06]} 61. e6 {[%clk 0:00:05]}  Rg4+ {[%clk 0:00:06]} 62. Kc3 {[%clk 0:00:05]}  Rg3+ {[%clk 0:00:06]} 63. Kb4 {[%clk 0:00:04]}  Re3 {[%clk 0:00:06]} 64. Rd7+ {[%clk 0:00:03]}  Ke8 {[%clk 0:00:06]} 65. Rc7 {[%clk 0:00:03]}  Nxa3 {[%clk 0:00:05]} 66. Rxc6 {[%clk 0:00:03]}  Nc4 {[%clk 0:00:04]} 67. Kxb5 {[%clk 0:00:03]}  Ne5 {[%clk 0:00:02]} 68. Rc7 {[%clk 0:00:03]}  a3 {[%clk 0:00:03]} 69. Ra7 {[%clk 0:00:03]}  Nd3 {[%clk 0:00:01]} 70. Nb7 {[%clk 0:00:01]}  Re5+ {[%clk 0:00:01]} 71. Nc5 {[%clk 0:00:01]}  Nxc5 {[%clk 0:00:01]} 72. Kc6 {[%clk 0:00:01]} 1-0


[Site "https://www.chess.com"]

[Event "Titled Tuesday Blitz October 11 Early 2022"]
[White "Kouskoutis, Georgios-Alexandros"]
[Black "Schut, Han"]
[WhiteFideId "4234049"]
[BlackFideId "1005561"]
[WhiteElo "2187"]
[BlackElo "2024"]
[Result "1-0"]
[Round "04"]
[TimeControl "180+1"]
[Date "2022.10.12"]
[WhiteClock "0:00:07"]
[BlackClock "0:00:18"]

1. Nf3 {[%clk 0:03:00]}  Nf6 {[%clk 0:02:58]} 2. g3 {[%clk 0:03:01]}  g6 {[%clk 0:02:58]} 3. Bg2 {[%clk 0:03:01]}  Bg7 {[%clk 0:02:59]} 4. O-O {[%clk 0:03:01]}  O-O {[%clk 0:03:00]} 5. b3 {[%clk 0:03:01]}  d5 {[%clk 0:03:00]} 6. Bb2 {[%clk 0:03:01]}  c5 {[%clk 0:03:00]} 7. e3 {[%clk 0:02:50]}  Nc6 {[%clk 0:03:00]} 8. d3 {[%clk 0:02:51]}  Re8 {[%clk 0:02:56]} 9. Nbd2 {[%clk 0:02:50]}  e5 {[%clk 0:02:56]} 10. e4 {[%clk 0:02:49]}  h6 {[%clk 0:02:55]} 11. Re1 {[%clk 0:02:48]}  Qc7 {[%clk 0:02:40]} 12. exd5 {[%clk 0:02:39]}  Nxd5 {[%clk 0:02:40]} 13. Qc1 {[%clk 0:02:28]}  Be6 {[%clk 0:02:04]} 14. Nc4 {[%clk 0:02:10]}  f6 {[%clk 0:01:57]} 15. a4 {[%clk 0:01:58]}  b6 {[%clk 0:01:54]} 16. c3 {[%clk 0:01:17]}  Rac8 {[%clk 0:01:52]} 17. Qc2 {[%clk 0:01:16]}  Qf7 {[%clk 0:01:37]} 18. Nd6 {[%clk 0:01:07]}  Qd7 {[%clk 0:01:21]} 19. Nxe8 {[%clk 0:01:04]}  Qxe8 {[%clk 0:01:19]} 20. Nd2 {[%clk 0:00:59]}  Qf7 {[%clk 0:01:10]} 21. Ne4 {[%clk 0:00:54]}  Bf8 {[%clk 0:01:08]} 22. Qe2 {[%clk 0:00:41]}  Kg7 {[%clk 0:01:01]} 23. Nd2 {[%clk 0:00:34]}  Be7 {[%clk 0:00:56]} 24. d4 {[%clk 0:00:27]}  cxd4 {[%clk 0:00:50]} 25. cxd4 {[%clk 0:00:28]}  Ndb4 {[%clk 0:00:42]} 26. dxe5 {[%clk 0:00:28]}  f5 {[%clk 0:00:38]} 27. Nc4 {[%clk 0:00:22]}  Kh7 {[%clk 0:00:32]} 28. Rac1 {[%clk 0:00:17]}  Bc5 {[%clk 0:00:29]} 29. Nd6 {[%clk 0:00:14]}  Bxd6 {[%clk 0:00:20]} 30. exd6 {[%clk 0:00:15]}  Bd5 {[%clk 0:00:18]} 31. Bxd5 {[%clk 0:00:11]}  Qxd5 {[%clk 0:00:19]} 32. Qe7+ {[%clk 0:00:06]}  Nxe7 {[%clk 0:00:19]} 33. Rxe7+ {[%clk 0:00:07]}  Kg8 {[%clk 0:00:18]} 34. Rxc8# {[%clk 0:00:07]} 1-0


[Site "https://www.chess.com"]

[Event "Titled Tuesday Blitz October 11 Early 2022"]
[White "Kovalenko, Igor"]
[Black "Ovchinnikov, Vsevolod"]
[WhiteFideId "14117908"]
[BlackFideId "24176842"]
[WhiteElo "2574"]
[BlackElo "2376"]
[Result "1-0"]
[Round "04"]
[TimeControl "180+1"]
[Date "2022.10.11"]
[WhiteClock "0:02:04"]
[BlackClock "0:00:11"]

1. c4 {[%clk 0:03:00]}  Nf6 {[%clk 0:03:00]} 2. Nc3 {[%clk 0:02:59]}  g6 {[%clk 0:02:59]} 3. g3 {[%clk 0:02:59]}  d5 {[%clk 0:02:58]} 4. Bg2 {[%clk 0:03:00]}  dxc4 {[%clk 0:02:58]} 5. Qa4+ {[%clk 0:02:59]}  c6 {[%clk 0:02:58]} 6. Qxc4 {[%clk 0:03:00]}  Be6 {[%clk 0:02:58]} 7. Qa4 {[%clk 0:02:59]}  Bg7 {[%clk 0:02:56]} 8. Nf3 {[%clk 0:02:59]}  O-O {[%clk 0:02:55]} 9. O-O {[%clk 0:02:59]}  Nbd7 {[%clk 0:02:54]} 10. Qc2 {[%clk 0:02:59]}  h6 {[%clk 0:02:33]} 11. Nd4 {[%clk 0:02:55]}  Nc5 {[%clk 0:02:31]} 12. Nxe6 {[%clk 0:02:55]}  Nxe6 {[%clk 0:02:32]} 13. e3 {[%clk 0:02:55]}  Qd7 {[%clk 0:02:29]} 14. d4 {[%clk 0:02:54]}  c5 {[%clk 0:02:28]} 15. d5 {[%clk 0:02:53]}  Nc7 {[%clk 0:02:27]} 16. Rd1 {[%clk 0:02:53]}  Rac8 {[%clk 0:02:16]} 17. e4 {[%clk 0:02:51]}  Nfe8 {[%clk 0:01:58]} 18. Be3 {[%clk 0:02:48]}  Na6 {[%clk 0:01:55]} 19. a3 {[%clk 0:02:47]}  Nd6 {[%clk 0:01:53]} 20. Qe2 {[%clk 0:02:43]}  Kh7 {[%clk 0:01:24]} 21. f4 {[%clk 0:02:43]}  Bxc3 {[%clk 0:01:16]} 22. bxc3 {[%clk 0:02:43]}  Qa4 {[%clk 0:01:17]} 23. e5 {[%clk 0:02:34]}  Nc4 {[%clk 0:01:17]} 24. Bf2 {[%clk 0:02:34]}  Rcd8 {[%clk 0:01:09]} 25. h4 {[%clk 0:02:33]}  h5 {[%clk 0:01:07]} 26. Be4 {[%clk 0:02:33]}  b5 {[%clk 0:00:58]} 27. Qxh5+ {[%clk 0:02:32]}  Kg7 {[%clk 0:00:57]} 28. Qe2 {[%clk 0:02:29]}  f5 {[%clk 0:00:40]} 29. exf6+ {[%clk 0:02:20]}  exf6 {[%clk 0:00:40]} 30. h5 {[%clk 0:02:19]}  f5 {[%clk 0:00:40]} 31. Bc2 {[%clk 0:02:17]}  Qa5 {[%clk 0:00:40]} 32. hxg6 {[%clk 0:02:17]}  Qxc3 {[%clk 0:00:18]} 33. Qe7+ {[%clk 0:02:14]}  Kxg6 {[%clk 0:00:16]} 34. Qg5+ {[%clk 0:02:12]}  Kf7 {[%clk 0:00:14]} 35. Bxf5 {[%clk 0:02:13]}  Qf6 {[%clk 0:00:13]} 36. Qh5+ {[%clk 0:02:06]}  Ke7 {[%clk 0:00:10]} 37. Re1+ {[%clk 0:02:03]}  Kd6 {[%clk 0:00:11]} 38. Re6+ {[%clk 0:02:04]} 1-0


[Site "https://www.chess.com"]

[Event "Titled Tuesday Blitz October 11 Early 2022"]
[White "Kravtsiv, Martyn"]
[Black "Kaidanov, Gregory"]
[WhiteFideId "14113147"]
[BlackFideId "2008564"]
[WhiteElo "2694"]
[BlackElo "2623"]
[Result "0-1"]
[Round "04"]
[TimeControl "180+1"]
[Date "2022.10.11"]
[WhiteClock "0:00:05"]
[BlackClock "0:00:52"]

1. e4 {[%clk 0:03:00]}  e6 {[%clk 0:02:59]} 2. d4 {[%clk 0:03:00]}  d5 {[%clk 0:03:00]} 3. Nc3 {[%clk 0:03:00]}  Nf6 {[%clk 0:02:59]} 4. Bg5 {[%clk 0:02:58]}  dxe4 {[%clk 0:02:57]} 5. Nxe4 {[%clk 0:02:57]}  Nbd7 {[%clk 0:02:57]} 6. Nf3 {[%clk 0:02:54]}  h6 {[%clk 0:02:58]} 7. Nxf6+ {[%clk 0:02:39]}  Nxf6 {[%clk 0:02:59]} 8. Bxf6 {[%clk 0:02:37]}  Qxf6 {[%clk 0:02:58]} 9. Bd3 {[%clk 0:02:37]}  Bd6 {[%clk 0:02:56]} 10. Qe2 {[%clk 0:02:36]}  Bd7 {[%clk 0:02:55]} 11. Be4 {[%clk 0:02:22]}  c6 {[%clk 0:02:44]} 12. O-O-O {[%clk 0:02:19]}  O-O-O {[%clk 0:02:43]} 13. Kb1 {[%clk 0:02:18]}  Kb8 {[%clk 0:02:41]} 14. Rhe1 {[%clk 0:02:15]}  Bc8 {[%clk 0:02:40]} 15. Bd3 {[%clk 0:02:06]}  c5 {[%clk 0:02:39]} 16. dxc5 {[%clk 0:02:03]}  Bxc5 {[%clk 0:02:40]} 17. Ne5 {[%clk 0:02:03]}  Bd4 {[%clk 0:02:30]} 18. Ng4 {[%clk 0:01:51]}  Qe7 {[%clk 0:02:29]} 19. c3 {[%clk 0:01:51]}  Bb6 {[%clk 0:02:27]} 20. Ne5 {[%clk 0:01:41]}  Qc7 {[%clk 0:02:11]} 21. f4 {[%clk 0:01:29]}  a6 {[%clk 0:02:10]} 22. g3 {[%clk 0:01:28]}  f6 {[%clk 0:02:09]} 23. Nc4 {[%clk 0:01:18]}  Ba7 {[%clk 0:02:05]} 24. a4 {[%clk 0:01:13]}  Rhe8 {[%clk 0:02:03]} 25. b3 {[%clk 0:00:50]}  e5 {[%clk 0:02:00]} 26. Bg6 {[%clk 0:00:45]}  Rxd1+ {[%clk 0:01:39]} 27. Rxd1 {[%clk 0:00:44]}  Re7 {[%clk 0:01:39]} 28. fxe5 {[%clk 0:00:44]}  fxe5 {[%clk 0:01:38]} 29. Kb2 {[%clk 0:00:41]}  e4 {[%clk 0:01:30]} 30. Nd6 {[%clk 0:00:39]}  e3 {[%clk 0:01:25]} 31. Nxc8 {[%clk 0:00:18]}  Qxc8 {[%clk 0:01:24]} 32. Bh5 {[%clk 0:00:17]}  Bb6 {[%clk 0:01:14]} 33. Rd5 {[%clk 0:00:16]}  Qc6 {[%clk 0:01:06]} 34. Bf3 {[%clk 0:00:12]}  Qf6 {[%clk 0:01:04]} 35. a5 {[%clk 0:00:09]}  Bc7 {[%clk 0:01:03]} 36. Bh1 {[%clk 0:00:05]}  Qf2 {[%clk 0:00:58]} 37. Bf3 {[%clk 0:00:05]}  Rf7 {[%clk 0:00:52]} 0-1


[Site "https://www.chess.com"]

[Event "Titled Tuesday Blitz October 11 Early 2022"]
[White "Krysa, Leandro"]
[Black "Bharath Subramaniyam H"]
[WhiteFideId "116807"]
[BlackFideId "46634827"]
[WhiteElo "2486"]
[BlackElo "2395"]
[Result "1-0"]
[Round "04"]
[TimeControl "180+1"]
[Date "2022.10.12"]
[WhiteClock "0:00:12"]
[BlackClock "0:00:04"]

1. b4 {[%clk 0:02:59]}  e5 {[%clk 0:00:53]} 2. Bb2 {[%clk 0:02:58]}  Bxb4 {[%clk 0:00:47]} 3. Bxe5 {[%clk 0:02:57]}  Nf6 {[%clk 0:00:47]} 4. c3 {[%clk 0:02:57]}  Be7 {[%clk 0:00:46]} 5. g3 {[%clk 0:02:53]}  Nc6 {[%clk 0:00:45]} 6. Bxf6 {[%clk 0:02:52]}  Bxf6 {[%clk 0:00:46]} 7. Bg2 {[%clk 0:02:52]}  O-O {[%clk 0:00:46]} 8. d4 {[%clk 0:02:52]}  d5 {[%clk 0:00:44]} 9. e3 {[%clk 0:02:52]}  Ne7 {[%clk 0:00:43]} 10. Ne2 {[%clk 0:02:49]}  c5 {[%clk 0:00:44]} 11. dxc5 {[%clk 0:02:37]}  Qc7 {[%clk 0:00:42]} 12. O-O {[%clk 0:02:34]}  Qxc5 {[%clk 0:00:43]} 13. Nd2 {[%clk 0:02:33]}  Bg4 {[%clk 0:00:41]} 14. Nb3 {[%clk 0:02:31]}  Qc4 {[%clk 0:00:41]} 15. f3 {[%clk 0:01:54]}  Bf5 {[%clk 0:00:36]} 16. Rc1 {[%clk 0:01:49]}  Bd3 {[%clk 0:00:27]} 17. Rf2 {[%clk 0:01:45]}  Nf5 {[%clk 0:00:26]} 18. Nf4 {[%clk 0:01:38]}  Bg5 {[%clk 0:00:06]} 19. Qxd3 {[%clk 0:01:33]}  Qxd3 {[%clk 0:00:05]} 20. Nxd3 {[%clk 0:01:33]}  Bxe3 {[%clk 0:00:06]} 21. Rd1 {[%clk 0:01:22]}  Rac8 {[%clk 0:00:04]} 22. Bh3 {[%clk 0:00:46]}  g6 {[%clk 0:00:02]} 23. Bxf5 {[%clk 0:00:42]}  gxf5 {[%clk 0:00:02]} 24. Nb4 {[%clk 0:00:35]}  Rxc3 {[%clk 0:00:01]} 25. Kg2 {[%clk 0:00:16]}  Bxf2 {[%clk 0:00:02]} 26. Kxf2 {[%clk 0:00:16]}  Rc4 {[%clk 0:00:02]} 27. Nxd5 {[%clk 0:00:14]}  Rc2+ {[%clk 0:00:03]} 28. Ke3 {[%clk 0:00:14]}  Rxa2 {[%clk 0:00:03]} 29. Nd4 {[%clk 0:00:13]}  Re8+ {[%clk 0:00:03]} 30. Kf4 {[%clk 0:00:13]}  Rxh2 {[%clk 0:00:03]} 31. Nxf5 {[%clk 0:00:13]}  Re6 {[%clk 0:00:02]} 32. Nde7+ {[%clk 0:00:12]}  Rxe7 {[%clk 0:00:02]} 33. Nxe7+ {[%clk 0:00:11]}  Kg7 {[%clk 0:00:03]} 34. Nf5+ {[%clk 0:00:12]}  Kg6 {[%clk 0:00:03]} 35. Rd6+ {[%clk 0:00:11]}  f6 {[%clk 0:00:04]} 36. Rd7 {[%clk 0:00:12]} 1-0


[Site "https://www.chess.com"]

[Event "Titled Tuesday Blitz October 11 Early 2022"]
[White "Kushko, Dmitriy"]
[Black "Sargsyan, Anna M."]
[WhiteFideId "14162261"]
[BlackFideId "13308130"]
[WhiteElo "2230"]
[BlackElo "2284"]
[Result "1-0"]
[Round "04"]
[TimeControl "180+1"]
[Date "2022.10.12"]
[WhiteClock "0:00:07"]
[BlackClock "0:00:09"]

1. g3 {[%clk 0:03:00]}  d5 {[%clk 0:02:50]} 2. Nf3 {[%clk 0:02:59]}  Nf6 {[%clk 0:02:49]} 3. Bg2 {[%clk 0:02:59]}  Bf5 {[%clk 0:02:50]} 4. O-O {[%clk 0:02:59]}  e6 {[%clk 0:02:50]} 5. c4 {[%clk 0:03:00]}  c6 {[%clk 0:02:50]} 6. Qb3 {[%clk 0:03:00]}  Qb6 {[%clk 0:02:49]} 7. d3 {[%clk 0:03:00]}  h6 {[%clk 0:02:49]} 8. Nc3 {[%clk 0:02:58]}  Nbd7 {[%clk 0:02:47]} 9. cxd5 {[%clk 0:02:58]}  exd5 {[%clk 0:02:47]} 10. Qc2 {[%clk 0:02:57]}  Be7 {[%clk 0:02:46]} 11. e4 {[%clk 0:02:57]}  dxe4 {[%clk 0:02:41]} 12. dxe4 {[%clk 0:02:58]}  Bh7 {[%clk 0:02:41]} 13. Qe2 {[%clk 0:02:59]}  Nc5 {[%clk 0:02:36]} 14. e5 {[%clk 0:02:41]}  Bd3 {[%clk 0:01:55]} 15. Qd2 {[%clk 0:01:11]}  Ng4 {[%clk 0:01:23]} 16. Rd1 {[%clk 0:00:55]}  Rd8 {[%clk 0:01:18]} 17. Qe1 {[%clk 0:00:35]}  Ne6 {[%clk 0:01:09]} 18. h3 {[%clk 0:00:25]}  Nxf2 {[%clk 0:01:08]} 19. Be3 {[%clk 0:00:25]}  Bc5 {[%clk 0:00:57]} 20. Bxf2 {[%clk 0:00:21]}  Qxb2 {[%clk 0:00:52]} 21. Na4 {[%clk 0:00:17]}  Bxf2+ {[%clk 0:00:47]} 22. Qxf2 {[%clk 0:00:18]}  Qb4 {[%clk 0:00:20]} 23. Qe3 {[%clk 0:00:18]}  Bg6 {[%clk 0:00:13]} 24. Rxd8+ {[%clk 0:00:19]}  Nxd8 {[%clk 0:00:13]} 25. Nc5 {[%clk 0:00:18]}  O-O {[%clk 0:00:13]} 26. Ne4 {[%clk 0:00:12]}  Ne6 {[%clk 0:00:13]} 27. Nd6 {[%clk 0:00:12]}  b6 {[%clk 0:00:12]} 28. Qd2 {[%clk 0:00:11]}  Qc5+ {[%clk 0:00:12]} 29. Kh2 {[%clk 0:00:11]}  b5 {[%clk 0:00:11]} 30. Rc1 {[%clk 0:00:11]}  Qb6 {[%clk 0:00:11]} 31. Nh4 {[%clk 0:00:11]}  Bh7 {[%clk 0:00:11]} 32. Rxc6 {[%clk 0:00:10]}  Qb8 {[%clk 0:00:09]} 33. Qe3 {[%clk 0:00:09]}  Rd8 {[%clk 0:00:09]} 34. Be4 {[%clk 0:00:07]}  Bxe4 {[%clk 0:00:09]} 35. Qxe4 {[%clk 0:00:08]}  a5 {[%clk 0:00:09]} 36. Nhf5 {[%clk 0:00:08]}  b4 {[%clk 0:00:10]} 37. Ne7+ {[%clk 0:00:08]}  Kf8 {[%clk 0:00:10]} 38. Nd5 {[%clk 0:00:07]}  Qa8 {[%clk 0:00:09]} 39. Nb6 {[%clk 0:00:06]}  Qa7 {[%clk 0:00:08]} 40. h4 {[%clk 0:00:05]}  Rb8 {[%clk 0:00:08]} 41. Qe3 {[%clk 0:00:05]}  a4 {[%clk 0:00:07]} 42. Nbc4 {[%clk 0:00:05]}  Qxe3 {[%clk 0:00:07]} 43. Nxe3 {[%clk 0:00:05]}  b3 {[%clk 0:00:08]} 44. axb3 {[%clk 0:00:06]}  axb3 {[%clk 0:00:09]} 45. Rc1 {[%clk 0:00:06]}  b2 {[%clk 0:00:09]} 46. Rb1 {[%clk 0:00:06]}  Nd4 {[%clk 0:00:10]} 47. Ndc4 {[%clk 0:00:06]}  Rb3 {[%clk 0:00:10]} 48. Rxb2 {[%clk 0:00:06]}  Rc3 {[%clk 0:00:10]} 49. Kg2 {[%clk 0:00:06]}  g5 {[%clk 0:00:09]} 50. hxg5 {[%clk 0:00:05]}  hxg5 {[%clk 0:00:10]} 51. Rb7 {[%clk 0:00:04]}  Kg7 {[%clk 0:00:10]} 52. Rc7 {[%clk 0:00:04]}  Kg6 {[%clk 0:00:09]} 53. Rd7 {[%clk 0:00:03]}  Ne6 {[%clk 0:00:09]} 54. Rd6 {[%clk 0:00:04]}  g4 {[%clk 0:00:09]} 55. Kf2 {[%clk 0:00:04]}  Kg5 {[%clk 0:00:09]} 56. Rd7 {[%clk 0:00:04]}  Kg6 {[%clk 0:00:07]} 57. Ke2 {[%clk 0:00:04]}  Rb3 {[%clk 0:00:08]} 58. Nd5 {[%clk 0:00:04]}  Rb5 {[%clk 0:00:08]} 59. Ne7+ {[%clk 0:00:04]}  Kg5 {[%clk 0:00:08]} 60. Rd5 {[%clk 0:00:05]}  Rb4 {[%clk 0:00:08]} 61. Ne3 {[%clk 0:00:04]}  Re4 {[%clk 0:00:08]} 62. Nc6 {[%clk 0:00:04]}  Kg6 {[%clk 0:00:07]} 63. Kd3 {[%clk 0:00:04]}  Ra4 {[%clk 0:00:08]} 64. Ne7+ {[%clk 0:00:04]}  Kg5 {[%clk 0:00:08]} 65. Nc6 {[%clk 0:00:05]}  Ra3+ {[%clk 0:00:09]} 66. Ke2 {[%clk 0:00:05]}  Ra2+ {[%clk 0:00:09]} 67. Rd2 {[%clk 0:00:06]}  Ra3 {[%clk 0:00:09]} 68. Nd4 {[%clk 0:00:06]}  Nc5 {[%clk 0:00:08]} 69. Rc2 {[%clk 0:00:06]}  Ne4 {[%clk 0:00:08]} 70. Nf1 {[%clk 0:00:05]}  Nxg3+ {[%clk 0:00:08]} 71. Nxg3 {[%clk 0:00:06]}  Rxg3 {[%clk 0:00:08]} 72. Rc7 {[%clk 0:00:06]}  Kg6 {[%clk 0:00:07]} 73. Rc6+ {[%clk 0:00:07]}  Kg5 {[%clk 0:00:07]} 74. Rf6 {[%clk 0:00:08]}  Rh3 {[%clk 0:00:07]} 75. Rxf7 {[%clk 0:00:08]}  Rh2+ {[%clk 0:00:08]} 76. Kf1 {[%clk 0:00:08]}  Rh1+ {[%clk 0:00:08]} 77. Kg2 {[%clk 0:00:08]}  Rd1 {[%clk 0:00:09]} 78. Ne2 {[%clk 0:00:08]}  Rf1 {[%clk 0:00:09]} 79. Rxf1 {[%clk 0:00:07]} 1-0


[Site "https://www.chess.com"]

[Event "Titled Tuesday Blitz October 11 Early 2022"]
[White "Kuznetsova, Olga"]
[Black "Vignesh, N R"]
[WhiteFideId "4191323"]
[BlackFideId "25012215"]
[WhiteElo "2134"]
[BlackElo "2386"]
[Result "0-1"]
[Round "04"]
[TimeControl "180+1"]
[Date "2022.10.12"]
[WhiteClock "0:00:14"]
[BlackClock "0:00:15"]

1. d4 {[%clk 0:02:57]}  Nf6 {[%clk 0:02:59]} 2. g3 {[%clk 0:02:53]}  e6 {[%clk 0:02:59]} 3. Bg2 {[%clk 0:02:53]}  d5 {[%clk 0:02:57]} 4. Nf3 {[%clk 0:02:53]}  Be7 {[%clk 0:02:55]} 5. O-O {[%clk 0:02:53]}  O-O {[%clk 0:02:56]} 6. b3 {[%clk 0:02:49]}  c5 {[%clk 0:02:53]} 7. Bb2 {[%clk 0:02:49]}  Nc6 {[%clk 0:02:50]} 8. e3 {[%clk 0:02:48]}  b6 {[%clk 0:02:46]} 9. Nbd2 {[%clk 0:02:45]}  Bb7 {[%clk 0:02:43]} 10. Ne5 {[%clk 0:02:43]}  Rc8 {[%clk 0:02:41]} 11. c4 {[%clk 0:02:41]}  cxd4 {[%clk 0:02:32]} 12. Nxc6 {[%clk 0:02:35]}  Bxc6 {[%clk 0:02:17]} 13. Bxd4 {[%clk 0:02:35]}  dxc4 {[%clk 0:02:06]} 14. Bxc6 {[%clk 0:02:34]}  Rxc6 {[%clk 0:01:52]} 15. Nxc4 {[%clk 0:02:34]}  Qc7 {[%clk 0:01:44]} 16. Qf3 {[%clk 0:02:08]}  Rc8 {[%clk 0:01:42]} 17. Rad1 {[%clk 0:02:04]}  b5 {[%clk 0:01:33]} 18. Ne5 {[%clk 0:02:03]}  Rc2 {[%clk 0:01:33]} 19. a4 {[%clk 0:02:00]}  bxa4 {[%clk 0:01:30]} 20. bxa4 {[%clk 0:02:00]}  Bd6 {[%clk 0:01:28]} 21. Nd3 {[%clk 0:01:55]}  e5 {[%clk 0:01:28]} 22. Ne1 {[%clk 0:01:37]}  exd4 {[%clk 0:01:20]} 23. Nxc2 {[%clk 0:01:37]}  Qxc2 {[%clk 0:01:21]} 24. Rxd4 {[%clk 0:01:37]}  Be5 {[%clk 0:01:16]} 25. Rb4 {[%clk 0:01:20]}  h5 {[%clk 0:01:02]} 26. h3 {[%clk 0:00:55]}  g6 {[%clk 0:00:59]} 27. a5 {[%clk 0:00:52]}  Qc5 {[%clk 0:00:57]} 28. Rfb1 {[%clk 0:00:44]}  Qxa5 {[%clk 0:00:55]} 29. Rb7 {[%clk 0:00:40]}  Rc7 {[%clk 0:00:49]} 30. Rb8+ {[%clk 0:00:29]}  Kg7 {[%clk 0:00:48]} 31. Qa8 {[%clk 0:00:28]}  Qd2 {[%clk 0:00:40]} 32. Rh8 {[%clk 0:00:20]}  Nd7 {[%clk 0:00:26]} 33. Rc8 {[%clk 0:00:20]}  Rxc8 {[%clk 0:00:25]} 34. Qxc8 {[%clk 0:00:20]}  Nb6 {[%clk 0:00:25]} 35. Qb7 {[%clk 0:00:18]}  Qd3 {[%clk 0:00:21]} 36. Rf1 {[%clk 0:00:17]}  Qa3 {[%clk 0:00:19]} 37. Rd1 {[%clk 0:00:15]}  Bf6 {[%clk 0:00:18]} 38. Kg2 {[%clk 0:00:13]}  Qa4 {[%clk 0:00:18]} 39. Rc1 {[%clk 0:00:10]}  Qa3 {[%clk 0:00:17]} 40. Rc7 {[%clk 0:00:10]}  Qa2 {[%clk 0:00:16]} 41. Qxa7 {[%clk 0:00:10]}  Qd5+ {[%clk 0:00:16]} 42. Kg1 {[%clk 0:00:10]}  Nc4 {[%clk 0:00:16]} 43. Qb7 {[%clk 0:00:10]}  Qe6 {[%clk 0:00:15]} 44. Qc6 {[%clk 0:00:09]}  Qxc6 {[%clk 0:00:14]} 45. Rxc6 {[%clk 0:00:10]}  Ne5 {[%clk 0:00:15]} 46. Rc1 {[%clk 0:00:09]}  g5 {[%clk 0:00:15]} 47. Kg2 {[%clk 0:00:10]}  g4 {[%clk 0:00:16]} 48. hxg4 {[%clk 0:00:10]}  hxg4 {[%clk 0:00:17]} 49. Rd1 {[%clk 0:00:09]}  Kg6 {[%clk 0:00:17]} 50. Rd5 {[%clk 0:00:10]}  Kf5 {[%clk 0:00:17]} 51. Ra5 {[%clk 0:00:10]}  Ke4 {[%clk 0:00:17]} 52. Ra4+ {[%clk 0:00:11]}  Kf5 {[%clk 0:00:18]} 53. Ra5 {[%clk 0:00:11]}  Ke6 {[%clk 0:00:18]} 54. Rb5 {[%clk 0:00:11]}  Be7 {[%clk 0:00:19]} 55. Ra5 {[%clk 0:00:12]}  Bd6 {[%clk 0:00:19]} 56. Rb5 {[%clk 0:00:12]}  f5 {[%clk 0:00:19]} 57. Ra5 {[%clk 0:00:12]}  Nd7 {[%clk 0:00:19]} 58. Ra6 {[%clk 0:00:12]}  Nf6 {[%clk 0:00:19]} 59. Rb6 {[%clk 0:00:12]}  Ne4 {[%clk 0:00:19]} 60. Ra6 {[%clk 0:00:12]}  Kd5 {[%clk 0:00:19]} 61. Ra5+ {[%clk 0:00:12]}  Bc5 {[%clk 0:00:19]} 62. Kf1 {[%clk 0:00:12]}  Kc4 {[%clk 0:00:19]} 63. Ke2 {[%clk 0:00:13]}  Nc3+ {[%clk 0:00:18]} 64. Kf1 {[%clk 0:00:13]}  Nd5 {[%clk 0:00:17]} 65. Ke2 {[%clk 0:00:13]}  Nf6 {[%clk 0:00:16]} 66. Ra8 {[%clk 0:00:13]}  Ne4 {[%clk 0:00:16]} 67. Rf8 {[%clk 0:00:14]}  Bxf8 {[%clk 0:00:15]} 0-1


[Site "https://www.chess.com"]